lending/lending_fUSD_20250425
["ID","MTS","AMOUNT","RATE_DAILY","PERIOD"]
[358974427,1745596272595,-151.0,0.00036139,7]
[358974428,1745596272605,-151.0,0.00036139,7]
[358974429,1745596272614,-3940.7118022,0.00036139,2]
[358974430,1745596272624,-1897.5690918,0.00036139,2]
[358974431,1745596272634,-1173.6864112,0.00036139,2]
[358974432,1745596272644,-11814.787732,0.00036139,2]
[358974433,1745596272655,-33680.2372936,0.00036139,2]
[358974434,1745596272665,-1571.1807663,0.00036139,2]
[358974435,1745596272675,-5859.9333535,0.00036139,2]
[358974436,1745596272685,-962.7553723,0.00036139,2]
[358974437,1745596272696,-30816.5786651,0.00036139,2]
[358974438,1745596272708,-150.0,0.00036159,2]
[358974439,1745596272718,-500.0,0.00036163,10]
[358974440,1745596272728,-500.0,0.00036163,10]
[358974441,1745596272738,-666.0,0.00036163,10]
[358974442,1745596272748,-666.0,0.00036163,10]
[358974443,1745596272759,-300.0,0.00036163,10]
[358974444,1745596272769,-666.0,0.00036163,10]
[358974445,1745596272780,-987.33,0.00036163,2]
[358974446,1745596272790,-987.33,0.00036163,2]
[358974447,1745596272800,-987.33,0.00036163,2]
[358974448,1745596272810,-987.33,0.00036163,2]
[358974449,1745596272820,-987.33,0.00036163,2]
[358974450,1745596272831,-987.33,0.00036163,2]
[358974451,1745596272842,-987.54758384,0.00036163,2]
[358974452,1745596272852,-150.0,0.00036163,3]
[358974453,1745596272862,-150.0,0.00036163,3]
[358974454,1745596272872,-616.0,0.00036164,2]
[358974455,1745596272882,-500.0,0.00036164,2]
[358974456,1745596272891,-1086.5,0.00036164,2]
[358974457,1745596272902,-151.0,0.00036164,7]
[358974458,1745596272912,-151.0,0.00036164,7]
[358974459,1745596272922,-151.0,0.00036164,7]
[358974460,1745596272932,-604.126834,0.00036164,7]
[358974461,1745596272942,-604.126834,0.00036164,7]
[358974462,1745596272952,-604.126834,0.00036164,7]
[358974463,1745596272962,-604.126834,0.00036164,7]
[358974464,1745596272971,-151.0,0.00036164,7]
[358974465,1745596272981,-500.0,0.00036164,2]
[358974466,1745596272991,-500.0,0.00036164,2]
[358974467,1745596273001,-500.0,0.00036164,2]
[358974468,1745596273010,-500.0,0.00036164,2]
[358974469,1745596273020,-151.0,0.00036164,7]
[358974470,1745596273030,-151.0,0.00036164,7]
[358974471,1745596273040,-574.55731608,0.00036164,2]
[358974472,1745596273049,-500.0,0.00036164,2]
[358974473,1745596273059,-500.0,0.00036164,2]
[358974474,1745596273069,-444.54976423,0.00036164,2]
[358974475,1745596273079,-500.0,0.00036164,2]
[358974476,1745596273089,-500.0,0.00036164,2]
[358974477,1745596273098,-500.0,0.00036164,2]
[358974478,1745596273109,-500.0,0.00036164,2]
[358974479,1745596273119,-500.0,0.00036164,2]
[358974480,1745596273129,-493.51758548,0.00036164,2]
[358974481,1745596273139,-500.0,0.00036164,2]
[358974482,1745596273149,-500.0,0.00036164,2]
[358974483,1745596273159,-500.0,0.00036164,2]
[358974484,1745596273169,-500.0,0.00036164,2]
[358974485,1745596273179,-500.0,0.00036164,2]
[358974486,1745596273189,-500.0,0.00036164,2]
[358974487,1745596273200,-500.0,0.00036164,2]
[358974488,1745596273210,-376.02167723,0.00036164,2]
[358974489,1745596273220,-500.0,0.00036164,2]
[358974490,1745596273230,-500.0,0.00036164,2]
[358974491,1745596273240,-500.0,0.00036164,2]
[358974492,1745596273250,-500.0,0.00036164,2]
[358974493,1745596273260,-1235.27,0.00036164,2]
[358974494,1745596273270,-512.47,0.00036164,2]
[358974495,1745596273280,-500.0,0.00036164,2]
[358974496,1745596273290,-500.0,0.00036164,2]
[358974497,1745596273299,-500.0,0.00036164,2]
[358974498,1745596273309,-500.0,0.00036164,2]
[358974499,1745596273320,-500.0,0.00036164,2]
[358974500,1745596273330,-500.0,0.00036164,2]
[358974501,1745596273341,-300.0,0.00036164,2]
[358974502,1745596273351,-355.27438782,0.00036164,2]
[358974503,1745596273361,-500.0,0.00036164,2]
[358974504,1745596273371,-500.0,0.00036164,2]
[358974505,1745596273381,-534.98,0.00036164,2]
[358974506,1745596273391,-500.0,0.00036164,2]
[358974507,1745596273402,-500.0,0.00036164,2]
[358974508,1745596273412,-901.79,0.00036164,2]
[358974509,1745596273423,-500.0,0.00036164,2]
[358974510,1745596273433,-500.0,0.00036164,2]
[358974511,1745596273443,-500.0,0.00036164,2]
[358974512,1745596273453,-500.0,0.00036164,2]
[358974513,1745596273463,-500.0,0.00036164,2]
[358974514,1745596273473,-500.0,0.00036164,2]
[358974515,1745596273484,-500.0,0.00036164,2]
[358974516,1745596273495,-500.0,0.00036164,2]
[358974517,1745596273505,-500.0,0.00036164,2]
[358974518,1745596273515,-500.0,0.00036164,2]
[358974519,1745596273525,-500.0,0.00036164,2]
[358974520,1745596273535,-500.0,0.00036164,2]
[358974521,1745596273545,-500.0,0.00036164,2]
[358974522,1745596273555,-500.0,0.00036164,2]
[358974523,1745596273566,-500.0,0.00036164,2]
[358974524,1745596273576,-500.0,0.00036164,2]
[358974525,1745596273587,-500.0,0.00036164,2]
[358974526,1745596273598,-500.0,0.00036164,2]
[358974527,1745596273608,-620.72877691,0.00036164,2]
[358974528,1745596273619,-500.0,0.00036164,2]
[358974529,1745596273859,-240.23479479,0.00036164,2]
[358974530,1745596273900,-500.0,0.00036164,2]
[358974531,1745596273911,-526.17,0.00036164,2]
[358974532,1745596273921,-948.3,0.00036164,2]
[358974533,1745596273930,-500.0,0.00036164,2]
[358974534,1745596273940,-500.0,0.00036164,2]
[358974535,1745596273950,-500.0,0.00036164,2]
[358974536,1745596273960,-636.67,0.00036164,2]
[358974537,1745596273970,-500.0,0.00036164,2]
[358974538,1745596273980,-526.85338678,0.00036164,2]
[358974539,1745596273990,-763.89,0.00036164,2]
[358974540,1745596274000,-557.17458355,0.00036164,2]
[358974541,1745596274010,-500.0,0.00036164,2]
[358974542,1745596274020,-575.86260569,0.00036164,2]
[358974543,1745596274030,-500.0,0.00036164,2]
[358974544,1745596274040,-992.42,0.00036164,2]
[358974545,1745596274050,-992.42,0.00036164,2]
[358974546,1745596274060,-500.0,0.00036164,2]
[358974547,1745596274070,-500.0,0.00036164,2]
[358974548,1745596274080,-1567.43,0.00036164,2]
[358974549,1745596274089,-229.015322,0.00036164,2]
[358974550,1745596274099,-229.015322,0.00036164,2]
[358974551,1745596274109,-500.0,0.00036164,2]
[358974552,1745596274119,-500.0,0.00036164,2]
[358974553,1745596274129,-567.72,0.00036164,2]
[358974554,1745596274140,-229.015322,0.00036164,2]
[358974555,1745596274151,-229.015322,0.00036164,2]
[358974556,1745596274163,-834.13,0.00036164,2]
[358974557,1745596274174,-500.0,0.00036164,2]
[358974558,1745596274184,-500.0,0.00036164,2]
[358974559,1745596274197,-1044.85,0.00036164,2]
[358974560,1745596274206,-500.0,0.00036164,2]
[358974561,1745596274217,-500.0,0.00036164,2]
[358974562,1745596274226,-500.0,0.00036164,2]
[358974563,1745596274236,-249.98232684,0.00036164,2]
[358974564,1745596274247,-500.0,0.00036164,2]
[358974565,1745596274257,-697.21,0.00036164,2]
[358974566,1745596274268,-678.19,0.00036164,2]
[358974567,1745596274279,-179.531903,0.00036164,7]
[358974568,1745596274289,-500.0,0.00036164,2]
[358974569,1745596274299,-500.0,0.00036164,2]
[358974570,1745596274310,-179.531903,0.00036164,7]
[358974571,1745596274320,-500.0,0.00036164,2]
[358974572,1745596274331,-500.0,0.00036164,2]
[358974573,1745596274341,-500.0,0.00036164,2]
[358974574,1745596274350,-179.531903,0.00036164,7]
[358974575,1745596274360,-179.531903,0.00036164,7]
[358974576,1745596274370,-500.0,0.00036164,2]
[358974577,1745596274380,-500.0,0.00036164,2]
[358974578,1745596274390,-500.0,0.00036164,2]
[358974579,1745596274401,-444.04045586,0.00036164,2]
[358974580,1745596274411,-500.0,0.00036164,2]
[358974581,1745596274420,-576.4947197,0.00036164,2]
[358974582,1745596274430,-500.0,0.00036164,2]
[358974583,1745596274441,-500.0,0.00036164,2]
[358974584,1745596274451,-500.0,0.00036164,2]
[358974585,1745596274462,-500.0,0.00036164,2]
[358974586,1745596274472,-552.18,0.00036164,2]
[358974587,1745596274482,-1000.0,0.00036164,2]
[358974588,1745596274492,-500.0,0.00036164,2]
[358974589,1745596274502,-500.0,0.00036164,2]
[358974590,1745596274512,-500.0,0.00036164,2]
[358974591,1745596274523,-500.0,0.00036164,2]
[358974592,1745596274533,-1055.46,0.00036164,2]
[358974593,1745596274543,-500.0,0.00036164,2]
[358974594,1745596274553,-500.0,0.00036164,2]
[358974595,1745596274564,-500.0,0.00036164,2]
[358974596,1745596274574,-500.0,0.00036164,2]
[358974597,1745596274584,-327.61571797,0.00036164,2]
[358974598,1745596274594,-500.0,0.00036164,2]
[358974599,1745596274604,-500.0,0.00036164,2]
[358974600,1745596274614,-500.0,0.00036164,2]
[358974601,1745596274624,-500.0,0.00036164,2]
[358974602,1745596274634,-500.0,0.00036164,2]
[358974603,1745596274644,-500.0,0.00036164,2]
[358974604,1745596274654,-500.0,0.00036164,2]
[358974605,1745596274664,-500.0,0.00036164,2]
[358974606,1745596274674,-500.0,0.00036164,2]
[358974607,1745596274683,-598.89629743,0.00036164,2]
[358974608,1745596274695,-1075.39,0.00036164,2]
[358974609,1745596274705,-500.0,0.00036164,2]
[358974610,1745596274715,-500.0,0.00036164,2]
[358974611,1745596274725,-500.0,0.00036164,2]
[358974612,1745596274737,-500.0,0.00036164,2]
[358974613,1745596274746,-1092.71,0.00036164,2]
[358974614,1745596274756,-544.76613967,0.00036164,2]
[358974615,1745596274767,-575.49467978,0.00036164,2]
[358974616,1745596274777,-965.29,0.00036164,2]
[358974617,1745596274787,-500.0,0.00036164,2]
[358974618,1745596274796,-500.0,0.00036164,2]
[358974619,1745596274806,-500.0,0.00036164,2]
[358974620,1745596274816,-594.25,0.00036164,2]
[358974621,1745596274825,-500.0,0.00036164,2]
[358974622,1745596274835,-574.84998572,0.00036164,2]
[358974623,1745596274849,-500.0,0.00036164,2]
[358974624,1745596274859,-1174.49,0.00036164,2]
[358974625,1745596274868,-517.15789767,0.00036164,2]
[358974626,1745596274878,-500.0,0.00036164,2]
[358974627,1745596274888,-526.73970957,0.00036164,2]
[358974628,1745596274899,-588.13320665,0.00036164,2]
[358974629,1745596274911,-151.0,0.00036164,7]
[358974630,1745596274923,-151.0,0.00036164,7]
[358974631,1745596274934,-500.0,0.00036164,2]
[358974632,1745596274946,-525.69,0.00036164,2]
[358974633,1745596274956,-500.0,0.00036164,2]
[358974634,1745596274966,-773.16,0.00036164,2]
[358974635,1745596274976,-500.0,0.00036164,2]
[358974636,1745596274989,-650.78,0.00036164,2]
[358974637,1745596274999,-500.0,0.00036164,2]
[358974638,1745596275010,-500.0,0.00036164,2]
[358974639,1745596275020,-1147.390115,0.00036164,2]
[358974640,1745596275032,-500.0,0.00036164,2]
[358974641,1745596275042,-500.0,0.00036164,2]
[358974642,1745596275052,-500.0,0.00036164,2]
[358974643,1745596275063,-500.0,0.00036164,2]
[358974644,1745596275074,-151.0,0.00036164,7]
[358974645,1745596275084,-151.0,0.00036164,7]
[358974646,1745596275094,-1144.66,0.00036164,2]
[358974647,1745596275104,-500.0,0.00036164,2]
[358974648,1745596275114,-620.10287302,0.00036164,2]
[358974649,1745596275124,-500.0,0.00036164,2]
[358974650,1745596275134,-159.273322,0.00036164,2]
[358974651,1745596275144,-500.0,0.00036164,2]
[358974652,1745596275154,-500.0,0.00036164,2]
[358974653,1745596275164,-855.9,0.00036164,2]
[358974654,1745596275174,-500.0,0.00036164,2]
[358974655,1745596275184,-500.0,0.00036164,2]
[358974656,1745596275195,-570.04,0.00036164,2]
[358974657,1745596275205,-500.0,0.00036164,2]
[358974658,1745596275214,-500.0,0.00036164,2]
[358974659,1745596275223,-698.43,0.00036164,2]
[358974660,1745596275235,-556.10628371,0.00036164,2]
[358974661,1745596275245,-500.0,0.00036164,2]
[358974662,1745596275255,-500.0,0.00036164,2]
[358974663,1745596275266,-500.0,0.00036164,2]
[358974664,1745596275276,-847.65,0.00036164,2]
[358974665,1745596275286,-1186.74338,0.00036164,2]
[358974666,1745596275295,-151.0,0.00036164,7]
[358974667,1745596275305,-500.0,0.00036164,2]
[358974668,1745596275316,-500.0,0.00036164,2]
[358974669,1745596275326,-500.0,0.00036164,2]
[358974670,1745596275335,-500.0,0.00036164,2]
[358974671,1745596275346,-151.0,0.00036164,7]
[358974672,1745596275356,-500.0,0.00036164,2]
[358974673,1745596275366,-500.0,0.00036164,2]
[358974674,1745596275376,-500.0,0.00036164,2]
[358974675,1745596275386,-500.0,0.00036164,2]
[358974676,1745596275396,-520.78,0.00036164,2]
[358974677,1745596275406,-500.0,0.00036164,2]
[358974678,1745596275416,-641.57,0.00036164,2]
[358974679,1745596275426,-500.0,0.00036164,2]
[358974680,1745596275436,-156.451024,0.00036164,7]
[358974681,1745596275447,-520.45,0.00036164,2]
[358974682,1745596275457,-500.0,0.00036164,2]
[358974683,1745596275467,-845.23,0.00036164,2]
[358974684,1745596275477,-797.02,0.00036164,2]
[358974685,1745596275487,-500.0,0.00036164,2]
[358974686,1745596275497,-513.95580512,0.00036164,2]
[358974687,1745596275508,-500.0,0.00036164,2]
[358974688,1745596275517,-1185.34,0.00036164,2]
[358974689,1745596275528,-500.0,0.00036164,2]
[358974690,1745596275538,-500.0,0.00036164,2]
[358974691,1745596275547,-500.0,0.00036164,2]
[358974692,1745596275557,-500.0,0.00036164,2]
[358974693,1745596275567,-500.0,0.00036164,2]
[358974694,1745596275577,-500.0,0.00036164,2]
[358974695,1745596275587,-707.65,0.00036164,2]
[358974696,1745596275597,-500.0,0.00036164,2]
[358974697,1745596275607,-509.39,0.00036164,2]
[358974698,1745596275616,-500.0,0.00036164,2]
[358974699,1745596275626,-500.0,0.00036164,2]
[358974700,1745596275636,-500.0,0.00036164,2]
[358974701,1745596275646,-500.0,0.00036164,2]
[358974702,1745596275656,-902.14,0.00036164,2]
[358974703,1745596275665,-500.0,0.00036164,2]
[358974704,1745596275676,-500.0,0.00036164,2]
[358974705,1745596275686,-500.0,0.00036164,2]
[358974706,1745596275697,-500.0,0.00036164,2]
[358974707,1745596275713,-500.0,0.00036164,2]
[358974708,1745596275723,-1260.11,0.00036164,2]
[358974709,1745596275734,-729.86,0.00036164,2]
[358974710,1745596275744,-966.74,0.00036164,2]
[358974711,1745596275754,-607.12,0.00036164,2]
[358974712,1745596275764,-500.0,0.00036164,2]
[358974713,1745596275774,-500.0,0.00036164,2]
[358974714,1745596275786,-737.09,0.00036164,2]
[358974715,1745596275795,-500.0,0.00036164,2]
[358974716,1745596275805,-500.0,0.00036164,2]
[358974717,1745596275815,-1114.74,0.00036164,2]
[358974718,1745596275824,-1161.27,0.00036164,2]
[358974719,1745596275834,-1337.81,0.00036164,2]
[358974720,1745596275843,-500.0,0.00036164,2]
[358974721,1745596275853,-500.0,0.00036164,2]
[358974722,1745596275862,-550.56819906,0.00036164,2]
[358974723,1745596275873,-500.0,0.00036164,2]
[358974724,1745596275882,-500.0,0.00036164,2]
[358974725,1745596275892,-534.91,0.00036164,2]
[358974726,1745596275903,-753.54,0.00036164,2]
[358974727,1745596275913,-629.59,0.00036164,2]
[358974728,1745596275924,-826.01,0.00036164,2]
[358974729,1745596275933,-500.0,0.00036164,2]
[358974730,1745596275943,-500.0,0.00036164,2]
[358974731,1745596275953,-500.0,0.00036164,2]
[358974732,1745596275963,-360.66285228,0.00036164,2]
[358974733,1745596275972,-500.0,0.00036164,2]
[358974734,1745596275982,-595.76,0.00036164,2]
[358974735,1745596275991,-500.0,0.00036164,2]
[358974736,1745596276001,-500.0,0.00036164,2]
[358974737,1745596276011,-327.86268946,0.00036164,2]
[358974738,1745596276021,-500.0,0.00036164,2]
[358974739,1745596276031,-500.0,0.00036164,2]
[358974740,1745596276040,-500.0,0.00036164,2]
[358974741,1745596276050,-500.0,0.00036164,2]
[358974742,1745596276059,-500.0,0.00036164,2]
[358974743,1745596276069,-500.0,0.00036164,2]
[358974744,1745596276078,-500.0,0.00036164,2]
[358974745,1745596276089,-987.63,0.00036164,2]
[358974746,1745596276101,-500.0,0.00036164,2]
[358974747,1745596276111,-513.73,0.00036164,2]
[358974748,1745596276122,-517.86,0.00036164,2]
[358974749,1745596276132,-500.0,0.00036164,2]
[358974750,1745596276142,-1023.24,0.00036164,2]
[358974751,1745596276151,-623.30485272,0.00036164,2]
[358974752,1745596276162,-2726.69,0.00036164,2]
[358974753,1745596276174,-6666.66,0.00036164,2]
[358974754,1745596276184,-156.363978,0.00036164,7]
[358974755,1745596276195,-500.0,0.00036164,2]
[358974756,1745596276207,-1358.99,0.00036164,2]
[358974757,1745596276217,-500.0,0.00036164,2]
[358974758,1745596276227,-500.0,0.00036164,2]
[358974759,1745596276238,-500.0,0.00036164,2]
[358974760,1745596276250,-596.37,0.00036164,2]
[358974761,1745596276263,-500.0,0.00036164,2]
[358974762,1745596276272,-500.0,0.00036164,2]
[358974763,1745596276388,-1022.7,0.00036164,2]
[358974764,1745596276398,-500.0,0.00036164,2]
[358974765,1745596276408,-500.0,0.00036164,2]
[358974766,1745596276417,-500.0,0.00036164,2]
[358974767,1745596276427,-500.0,0.00036164,2]
[358974768,1745596276437,-500.0,0.00036164,2]
[358974769,1745596276447,-1201.7,0.00036164,2]
[358974770,1745596276457,-1023.5,0.00036164,2]
[358974771,1745596276467,-793.11,0.00036164,2]
[358974772,1745596276477,-500.0,0.00036164,2]
[358974773,1745596276487,-522.94,0.00036164,2]
[358974774,1745596276496,-625.0,0.00036164,2]
[358974775,1745596276506,-1068.57,0.00036164,2]
[358974776,1745596276515,-500.0,0.00036164,2]
[358974777,1745596276524,-500.0,0.00036164,2]
[358974778,1745596276535,-151.0,0.00036164,7]
[358974779,1745596276544,-500.0,0.00036164,2]
[358974780,1745596276554,-500.0,0.00036164,2]
[358974781,1745596276563,-503.04,0.00036164,2]
[358974782,1745596276573,-500.0,0.00036164,2]
[358974783,1745596276583,-1103.29,0.00036164,2]
[358974784,1745596276593,-881.92,0.00036164,2]
[358974785,1745596276602,-500.0,0.00036164,2]
[358974786,1745596276612,-500.0,0.00036164,2]
[358974787,1745596276622,-1018.79,0.00036164,2]
[358974788,1745596276631,-500.0,0.00036164,2]
[358974789,1745596276642,-518.19,0.00036164,2]
[358974790,1745596276652,-500.0,0.00036164,2]
[358974791,1745596276661,-500.0,0.00036164,2]
[358974792,1745596276671,-500.0,0.00036164,2]
[358974793,1745596276680,-1002.85,0.00036164,2]
[358974794,1745596276690,-664.41,0.00036164,2]
[358974795,1745596276704,-973.77,0.00036164,2]
[358974796,1745596276714,-1010.9,0.00036164,2]
[358974797,1745596276724,-151.0,0.00036164,7]
[358974798,1745596276735,-500.0,0.00036164,2]
[358974799,1745596276745,-152.985007,0.00036164,7]
[358974800,1745596276755,-933.52,0.00036164,2]
[358974801,1745596276767,-500.0,0.00036164,2]
[358974802,1745596276777,-500.0,0.00036164,2]
[358974803,1745596276788,-522.59,0.00036164,2]
[358974804,1745596276798,-750.39,0.00036164,2]
[358974805,1745596276810,-754.52,0.00036164,2]
[358974806,1745596276821,-908.62,0.00036164,2]
[358974807,1745596276831,-1059.8,0.00036164,2]
[358974808,1745596276840,-500.0,0.00036164,2]
[358974809,1745596276849,-500.0,0.00036164,2]
[358974810,1745596276860,-760.95,0.00036164,2]
[358974811,1745596276872,-500.0,0.00036164,2]
[358974812,1745596276881,-500.0,0.00036164,2]
[358974813,1745596276891,-957.32,0.00036164,2]
[358974814,1745596276902,-500.0,0.00036164,2]
[358974815,1745596276912,-813.21,0.00036164,2]
[358974816,1745596276922,-151.0,0.00036164,7]
[358974817,1745596276932,-500.0,0.00036164,2]
[358974818,1745596276942,-793.45,0.00036164,2]
[358974819,1745596276951,-1101.22,0.00036164,2]
[358974820,1745596276961,-525.37,0.00036164,2]
[358974821,1745596276972,-500.0,0.00036164,2]
[358974822,1745596276982,-835.5,0.00036164,2]
[358974823,1745596276992,-500.0,0.00036164,2]
[358974824,1745596277002,-1101.5,0.00036164,2]
[358974825,1745596277011,-758.04,0.00036164,2]
[358974826,1745596277023,-500.0,0.00036164,2]
[358974827,1745596277034,-747.79,0.00036164,2]
[358974828,1745596277045,-500.0,0.00036164,2]
[358974829,1745596277056,-500.0,0.00036164,2]
[358974830,1745596277066,-596.41,0.00036164,2]
[358974831,1745596277075,-614.21,0.00036164,2]
[358974832,1745596277086,-584.17,0.00036164,2]
[358974833,1745596277096,-793.54,0.00036164,2]
[358974834,1745596277107,-1097.7,0.00036164,2]
[358974835,1745596277117,-500.0,0.00036164,2]
[358974836,1745596277127,-596.75,0.00036164,2]
[358974837,1745596277136,-838.33,0.00036164,2]
[358974838,1745596277146,-952.28,0.00036164,2]
[358974839,1745596277155,-151.0,0.00036164,7]
[358974840,1745596277164,-500.0,0.00036164,2]
[358974841,1745596277173,-1088.84,0.00036164,2]
[358974842,1745596277183,-292.16441,0.00036164,7]
[358974843,1745596277194,-886.75,0.00036164,2]
[358974844,1745596277203,-1095.86,0.00036164,2]
[358974845,1745596277212,-500.0,0.00036164,2]
[358974846,1745596277222,-866.88,0.00036164,2]
[358974847,1745596277232,-500.0,0.00036164,2]
[358974848,1745596277244,-519.52,0.00036164,2]
[358974849,1745596277254,-173.153948,0.00036164,7]
[358974850,1745596277265,-500.0,0.00036164,2]
[358974851,1745596277275,-517.95,0.00036164,2]
[358974852,1745596277285,-763.78,0.00036164,2]
[358974853,1745596277295,-500.0,0.00036164,2]
[358974854,1745596277305,-500.0,0.00036164,2]
[358974855,1745596277315,-500.0,0.00036164,2]
[358974856,1745596277324,-173.153948,0.00036164,7]
[358974857,1745596277336,-754.68,0.00036164,2]
[358974858,1745596277346,-500.0,0.00036164,2]
[358974859,1745596277355,-272.620426,0.00036164,7]
[358974860,1745596277365,-500.0,0.00036164,2]
[358974861,1745596277375,-500.0,0.00036164,2]
[358974862,1745596277385,-272.620426,0.00036164,7]
[358974863,1745596277395,-500.0,0.00036164,2]
[358974864,1745596277405,-500.0,0.00036164,2]
[358974865,1745596277415,-517.63,0.00036164,2]
[358974866,1745596277424,-500.0,0.00036164,2]
[358974867,1745596277434,-344.584627,0.00036164,7]
[358974868,1745596277445,-500.0,0.00036164,2]
[358974869,1745596277455,-151.0,0.00036164,7]
[358974870,1745596277465,-500.0,0.00036164,2]
[358974871,1745596277474,-344.584627,0.00036164,7]
[358974872,1745596277483,-500.0,0.00036164,2]
[358974873,1745596277493,-995.31,0.00036164,2]
[358974874,1745596277502,-523.73,0.00036164,2]
[358974875,1745596277512,-500.0,0.00036164,2]
[358974876,1745596277522,-741.36,0.00036164,2]
[358974877,1745596277532,-500.0,0.00036164,2]
[358974878,1745596277542,-695.09,0.00036164,2]
[358974879,1745596277551,-500.0,0.00036164,2]
[358974880,1745596277561,-500.0,0.00036164,2]
[358974881,1745596277571,-500.0,0.00036164,2]
[358974882,1745596277581,-737.01,0.00036164,2]
[358974883,1745596277590,-925.3,0.00036164,2]
[358974884,1745596277601,-500.0,0.00036164,2]
[358974885,1745596277611,-1035.06,0.00036164,2]
[358974886,1745596277621,-611.19,0.00036164,2]
[358974887,1745596277630,-1021.89,0.00036164,2]
[358974888,1745596277640,-622.98,0.00036164,2]
[358974889,1745596277651,-848.46,0.00036164,2]
[358974890,1745596277661,-444.39706586,0.00036164,2]
[358974891,1745596277671,-500.0,0.00036164,2]
[358974892,1745596277680,-194.39392269,0.00036164,2]
[358974893,1745596277690,-896.54,0.00036164,2]
[358974894,1745596277704,-500.0,0.00036164,2]
[358974895,1745596277714,-627.49,0.00036164,2]
[358974896,1745596277724,-637.10109195,0.00036164,2]
[358974897,1745596277734,-500.0,0.00036164,2]
[358974898,1745596277743,-500.0,0.00036164,2]
[358974899,1745596277753,-500.0,0.00036164,2]
[358974900,1745596277762,-500.0,0.00036164,2]
[358974901,1745596277772,-1429.16,0.00036164,2]
[358974902,1745596277782,-500.0,0.00036164,2]
[358974903,1745596277791,-171.66824956,0.00036164,2]
[358974904,1745596277800,-1250.0,0.00036164,7]
[358974905,1745596277810,-500.0,0.00036164,2]
[358974906,1745596277819,-500.0,0.00036164,2]
[358974907,1745596277828,-500.0,0.00036164,2]
[358974908,1745596277838,-500.0,0.00036164,2]
[358974909,1745596277847,-1374.55,0.00036164,2]
[358974910,1745596277856,-758.78,0.00036164,2]
[358974911,1745596277866,-153.20571975,0.00036164,2]
[358974912,1745596277876,-500.0,0.00036164,2]
[358974913,1745596277886,-1287.42,0.00036164,2]
[358974914,1745596277898,-574.19,0.00036164,2]
[358974915,1745596277909,-769.52,0.00036164,2]
[358974916,1745596277919,-1802.62,0.00036164,2]
[358974917,1745596277930,-500.0,0.00036164,2]
[358974918,1745596277941,-672.16,0.00036164,2]
[358974919,1745596277951,-526.81,0.00036164,2]
[358974920,1745596277961,-760.57,0.00036164,2]
[358974921,1745596277971,-500.0,0.00036164,2]
[358974922,1745596277982,-951.4,0.00036164,2]
[358974923,1745596277991,-500.0,0.00036164,2]
[358974924,1745596278003,-500.0,0.00036164,2]
[358974925,1745596278013,-151.0,0.00036164,7]
[358974926,1745596278023,-500.0,0.00036164,2]